fUSD/lending_fUSD_20250420
["ID","MTS","AMOUNT","RATE_DAILY","PERIOD"]
[358457622,1745166638092,-354.89445325,0.00058069,120]
[358457623,1745166638102,-540.37,0.00058069,120]
[358457624,1745166638111,-500.0,0.00058069,120]
[358457625,1745166638121,-220.34693457,0.00058069,120]
[358457626,1745166638132,-279.65306543,0.00058069,120]
[358457627,1745166638142,-456.98592739,0.00058069,120]
[358457628,1745166638154,-43.01407261,0.00058069,120]
[358457629,1745166638164,-500.0,0.00058069,120]
[358457630,1745166638173,-500.0,0.00058069,120]
[358457631,1745166638183,-290.77750828,0.00058069,120]
[358457632,1745166638283,-209.22249172,0.00058069,120]
[358457633,1745166638292,-790.52,0.00058069,120]
[358457635,1745166638302,-607.88,0.00058069,120]
[358457636,1745166638311,-500.0,0.00058069,120]
[358457637,1745166638321,-500.0,0.00058069,120]
[358457638,1745166638331,-57.18591009,0.00058069,120]
[358457639,1745166638342,-442.81408991,0.00058069,120]
[358457642,1745166638351,-500.0,0.00058069,120]
[358457644,1745166638361,-500.0,0.0005807,120]
[358457645,1745166638371,-43.52337214,0.0005807,120]
[358457646,1745166638382,-268.45056931,0.0005807,120]
[358457647,1745166638391,-500.0,0.0005807,120]
[358457648,1745166638399,-500.0,0.0005807,120]
[358457649,1745166638408,-1300.53090702,0.000581,90]
[358457650,1745166638419,-699.46909298,0.000581,90]
[358457651,1745166638428,-500.0,0.00058497,15]
[358457652,1745166638437,-500.0,0.00058617,120]
[358457653,1745166638446,-500.0,0.00058617,120]
[358457654,1745166638455,-156.46414629,0.00058617,120]
[358457655,1745166638466,-263.87137854,0.00058617,120]
[358457656,1745166638634,-79.66447517,0.00058617,120]
[358457657,1745166638645,-410.00039054,0.00058617,120]
[358457658,1745166638655,-500.0,0.00058617,120]
[358457659,1745166638666,-464.58127907,0.00058617,120]
[358457660,1745166638678,-35.41872093,0.00058617,120]
[358457661,1745166638688,-500.0,0.00058617,120]
[358457662,1745166638697,-500.0,0.00058617,8]
[358457663,1745166638706,-1000.0,0.00058617,120]
[358457664,1745166638715,-500.0,0.00058617,120]
[358457665,1745166638724,-197.70592868,0.00058617,120]
[358457666,1745166638733,-500.0,0.00058617,120]
[358457667,1745166638742,-500.0,0.00058617,120]
[358457668,1745166638752,-500.0,0.00058617,120]
[358457669,1745166638763,-500.0,0.00058617,120]
[358457670,1745166638773,-500.0,0.00058617,120]
[358457671,1745166638783,-500.0,0.00058617,120]
[358457672,1745166638793,-500.0,0.00058617,120]
[358457673,1745166638802,-540.37,0.00058617,120]
[358457674,1745166638811,-500.0,0.00058617,120]
[358457675,1745166638822,-500.0,0.00058617,120]
[358457676,1745166638834,-415.47556057,0.00058617,120]
[358457677,1745166638845,-500.0,0.00058617,120]
[358457678,1745166638854,-500.0,0.00058617,120]
[358457679,1745166638863,-500.0,0.00058617,120]
[358457680,1745166638874,-790.52,0.00058617,120]
[358457681,1745166638883,-607.88,0.00058617,120]
[358457682,1745166638895,-500.0,0.00058617,120]
[358457683,1745166638905,-500.0,0.00058617,120]
[358457684,1745166638916,-500.0,0.00058617,120]
[358457685,1745166638928,-500.0,0.00058617,120]
[358457686,1745166638937,-500.0,0.00058618,120]
[358457687,1745166638946,-500.0,0.00058618,120]
[358457688,1745166638955,-500.0,0.00058618,120]
[358457689,1745166638964,-500.0,0.00058627,120]
[358457690,1745166638973,-173.01175398,0.00058627,120]
[358457691,1745166638982,-500.0,0.00058627,120]
[358457692,1745166638992,-500.0,0.00058627,120]
[358457693,1745166639001,-355.59378856,0.00058627,120]
[358457694,1745166639010,-500.0,0.00058627,120]
[358457695,1745166639019,-500.0,0.00058627,30]
[358457696,1745166639027,-500.0,0.00058627,120]
[358457697,1745166639036,-500.0,0.00058627,120]
[358457698,1745166639045,-500.0,0.00058627,120]
[358457699,1745166639054,-500.0,0.00058627,120]
[358457700,1745166639063,-500.0,0.00058627,120]
[358457701,1745166639072,-530.16535854,0.00058627,120]
[358457702,1745166639082,-660.49,0.00058627,120]
[358457703,1745166639091,-500.0,0.00058627,120]
[358457704,1745166639100,-500.0,0.00058627,120]
[358457705,1745166639109,-500.0,0.00058627,120]
[358457706,1745166639118,-555.74489532,0.00058627,120]
[358457707,1745166639127,-500.0,0.00058627,120]
[358457708,1745166639137,-500.0,0.00058627,120]
[358457709,1745166639146,-500.0,0.00058627,120]
[358457710,1745166639155,-500.0,0.00058627,120]
[358457711,1745166639163,-500.0,0.00058627,120]
[358457712,1745166639172,-500.0,0.00058627,120]
[358457713,1745166639182,-500.0,0.00058627,120]
[358457714,1745166639191,-500.0,0.00058627,120]
[358457715,1745166639201,-500.0,0.00058627,120]
[358457716,1745166639211,-195.15290677,0.00058627,120]
[358457717,1745166639220,-500.0,0.00058627,120]
[358457718,1745166639230,-500.0,0.00058627,120]
[358457719,1745166639239,-500.0,0.00058627,120]
[358457720,1745166639249,-500.0,0.00058627,120]
[358457721,1745166639258,-500.0,0.00058627,120]
[358457722,1745166639268,-500.0,0.00058627,120]
[358457723,1745166639277,-598.38697414,0.00058627,120]
[358457724,1745166639287,-500.0,0.00058627,120]
[358457725,1745166639297,-500.0,0.00058627,120]
[358457726,1745166639307,-500.0,0.00058627,120]
[358457727,1745166639316,-500.0,0.00058627,120]
[358457728,1745166639325,-557.49,0.00058627,120]
[358457729,1745166639335,-970.95,0.00058627,12]
[358457730,1745166639345,-500.0,0.00058627,120]
[358457731,1745166639354,-282.6491863,0.00058627,120]
[358457732,1745166639364,-496.0544061,0.00058627,120]
[358457733,1745166639374,-539.86402208,0.00058627,120]
[358457734,1745166639383,-500.0,0.00058627,120]
[358457735,1745166639392,-500.0,0.00058627,120]
[358457736,1745166639401,-500.0,0.00058627,120]
[358457737,1745166639411,-500.0,0.00058627,120]
[358457738,1745166639420,-201.52238011,0.00058627,30]
[358457739,1745166639429,-500.0,0.00058627,120]
[358457740,1745166639439,-500.0,0.00058627,120]
[358457741,1745166639449,-500.0,0.00058627,120]
[358457742,1745166639459,-500.0,0.00058627,120]
[358457743,1745166639469,-500.0,0.00058627,120]
[358457744,1745166639479,-613.45742864,0.00058627,120]
[358457745,1745166639488,-592.82975096,0.00058627,120]
[358457746,1745166639497,-244.45936009,0.00058627,120]
[358457747,1745166639506,-500.0,0.00058627,120]
[358457748,1745166639515,-500.0,0.00058627,120]
[358457749,1745166639525,-500.0,0.00058627,120]
[358457750,1745166639534,-500.0,0.00058627,120]
[358457751,1745166639543,-500.0,0.00058627,120]
[358457752,1745166639552,-500.0,0.00058627,120]
[358457753,1745166639561,-500.0,0.00058627,120]
[358457754,1745166639570,-500.0,0.00058627,120]
[358457755,1745166639579,-500.0,0.00058627,120]
[358457756,1745166639587,-500.0,0.00058627,120]
[358457757,1745166639596,-500.0,0.00058627,120]
[358457758,1745166639605,-500.0,0.00058627,120]
[358457759,1745166639615,-500.0,0.00058627,120]
[358457760,1745166639624,-500.0,0.00058627,120]
[358457761,1745166639633,-500.0,0.00058627,120]
[358457762,1745166639642,-500.0,0.00058627,120]
[358457763,1745166639652,-500.0,0.00058627,120]
[358457764,1745166639661,-500.0,0.00058627,120]
[358457765,1745166639672,-500.0,0.00058627,120]
[358457766,1745166639681,-500.0,0.00058627,120]
[358457767,1745166639690,-500.0,0.00058627,120]
[358457768,1745166639699,-500.0,0.00058627,120]
[358457769,1745166639708,-500.0,0.00058627,120]
[358457770,1745166639716,-502.29,0.00058627,120]
[358457771,1745166639726,-500.0,0.00058627,120]
[358457772,1745166639736,-500.0,0.00058627,120]
[358457773,1745166639745,-500.0,0.00058627,120]
[358457774,1745166639754,-500.0,0.00058627,120]
[358457775,1745166639763,-500.0,0.00058627,120]
[358457776,1745166639772,-500.0,0.00058627,120]
[358457777,1745166639782,-500.0,0.00058627,120]
[358457778,1745166639791,-500.0,0.00058627,120]
[358457779,1745166639799,-500.0,0.00058627,120]
[358457780,1745166639809,-500.0,0.00058627,120]
[358457781,1745166639819,-500.0,0.00058627,120]
[358457782,1745166639831,-500.0,0.00058627,120]
[358457783,1745166639840,-582.99112973,0.0005865,15]
[358457784,1745166639849,-500.0,0.00058998,120]
[358457785,1745166639858,-500.0,0.00058998,120]
[358457786,1745166639869,-500.0,0.00058998,2]
[358457787,1745166639878,-500.0,0.00058998,2]
[358457788,1745166639887,-458.28091271,0.00058998,120]
[358457789,1745166639897,-500.0,0.00058998,120]
[358457790,1745166639906,-500.0,0.00058998,2]
[358457791,1745166639915,-500.0,0.00058998,120]
[358457792,1745166639924,-500.0,0.00058999,120]
[358457793,1745166639933,-500.0,0.00058999,120]
[358457794,1745166639942,-500.0,0.00058999,120]
[358457795,1745166639951,-516.06894363,0.00058999,120]
[358457796,1745166639960,-500.0,0.00058999,120]
[358457797,1745166639970,-155.71074119,0.00058999,120]
[358457798,1745166639979,-500.0,0.00058999,120]
[358457799,1745166639987,-6296.39,0.00058999,2]
[358457800,1745166639996,-378.26540769,0.00058999,120]
[358457801,1745166640006,-500.0,0.00058999,120]
[358457802,1745166640015,-500.0,0.00058999,120]
[358457803,1745166640024,-500.0,0.00058999,120]
[358457804,1745166640033,-500.0,0.00058999,120]
[358457805,1745166640042,-500.0,0.00058999,2]
[358457806,1745166640051,-500.0,0.00058999,3]
[358457807,1745166640060,-500.0,0.00058999,120]
[358457808,1745166640071,-500.0,0.00058999,118]
[358457809,1745166640082,-500.0,0.00058999,120]
[358457810,1745166640091,-500.0,0.00058999,120]
[358457811,1745166640100,-500.0,0.00058999,120]
[358457812,1745166640109,-517.31767828,0.00059,120]
[358457813,1745166640119,-172.0,0.00059,120]
[358457814,1745166640129,-151.0,0.00059041,120]
[358457815,1745166640138,-500.0,0.00059165,120]
[358457816,1745166640147,-500.0,0.00059165,120]
[358457817,1745166640156,-500.0,0.00059165,120]
[358457818,1745166640165,-500.0,0.00059165,120]
[358457819,1745166640174,-500.0,0.00059165,120]
[358457820,1745166640183,-500.0,0.00059165,120]
[358457821,1745166640193,-500.0,0.00059165,8]
[358457822,1745166640202,-1000.0,0.00059165,120]
[358457823,1745166640211,-500.0,0.00059165,120]
[358457824,1745166640220,-500.0,0.00059165,120]
[358457825,1745166640230,-500.0,0.00059165,120]
[358457826,1745166640239,-504.43253762,0.00059165,120]
[358457827,1745166640248,-500.0,0.00059165,120]
[358457828,1745166640257,-151.92467823,0.00059165,120]
[358457829,1745166640266,-500.0,0.00059165,120]
[358457830,1745166640276,-500.0,0.00059165,120]
[358457831,1745166640285,-540.37,0.00059165,120]
[358457832,1745166640294,-500.0,0.00059165,120]
[358457833,1745166640304,-500.0,0.00059165,120]
[358457834,1745166640316,-500.0,0.00059165,120]
[358457835,1745166640326,-500.0,0.00059165,120]
[358457836,1745166640339,-500.0,0.00059165,120]
[358457837,1745166640351,-790.52,0.00059165,120]
[358457838,1745166640362,-607.88,0.00059165,120]
[358457839,1745166640374,-500.0,0.00059165,120]
[358457840,1745166640384,-500.0,0.00059165,120]
[358457841,1745166640394,-500.0,0.00059165,120]
[358457842,1745166640405,-171.41,0.00059165,120]
[358457843,1745166640416,-500.0,0.00059166,120]
[358457844,1745166640427,-500.0,0.00059166,120]
[358457845,1745166640438,-500.0,0.00059166,120]
[358457846,1745166640449,-500.0,0.00059175,120]
[358457847,1745166640461,-500.0,0.00059175,120]
[358457848,1745166640472,-446.50588404,0.00059175,120]
[358457849,1745166640483,-500.0,0.00059175,120]
[358457850,1745166640495,-500.0,0.00059175,30]
[358457852,1745166640507,-500.0,0.00059175,120]
[358457854,1745166640519,-500.0,0.00059175,120]
[358457855,1745166640530,-500.0,0.00059175,120]
[358457856,1745166640542,-500.0,0.00059175,120]
[358457857,1745166640553,-660.49,0.00059175,120]
[358457858,1745166640564,-500.0,0.00059175,120]
[358457859,1745166640573,-500.0,0.00059175,120]
[358457860,1745166640582,-500.0,0.00059175,120]
[358457861,1745166640593,-500.0,0.00059175,120]
[358457862,1745166640604,-500.0,0.00059175,120]
[358457863,1745166640614,-500.0,0.00059175,120]
[358457864,1745166640626,-500.0,0.00059175,120]
[358457865,1745166640636,-500.0,0.00059175,120]
[358457866,1745166640648,-500.0,0.00059175,120]
[358457867,1745166640662,-500.0,0.00059175,120]
[358457868,1745166640674,-500.0,0.00059175,120]
[358457869,1745166640685,-500.0,0.00059175,120]
[358457870,1745166640695,-500.0,0.00059175,120]
[358457871,1745166640706,-500.0,0.00059175,120]
[358457872,1745166640718,-500.0,0.00059175,120]
[358457873,1745166640729,-500.0,0.00059175,120]
[358457874,1745166640740,-500.0,0.00059175,120]
[358457875,1745166640751,-500.0,0.00059175,120]
[358457876,1745166640763,-520.25991987,0.00059175,120]
[358457877,1745166640775,-557.49,0.00059175,120]
[358457878,1745166640787,-970.95,0.00059175,12]
[358457879,1745166640798,-500.0,0.00059175,120]
[358457880,1745166640808,-500.0,0.00059175,120]
[358457881,1745166640819,-500.0,0.00059175,120]
[358457882,1745166640834,-500.0,0.00059175,120]
[358457883,1745166640844,-500.0,0.00059175,120]
[358457884,1745166640856,-500.0,0.00059175,120]
[358457885,1745166640867,-500.0,0.00059175,120]
[358457886,1745166640876,-500.0,0.00059175,120]
[358457887,1745166640887,-500.0,0.00059175,120]
[358457888,1745166640899,-500.0,0.00059175,120]
[358457889,1745166640910,-500.0,0.00059175,120]
[358457890,1745166640921,-500.0,0.00059175,120]
[358457891,1745166640934,-263.98217257,0.00059175,120]
[358457892,1745166640945,-500.0,0.00059175,120]
[358457893,1745166640955,-500.0,0.00059175,120]
[358457894,1745166640965,-500.0,0.00059175,120]
[358457895,1745166640976,-500.0,0.00059175,120]
[358457896,1745166640986,-500.0,0.00059175,120]
[358457897,1745166640996,-500.0,0.00059175,120]
[358457898,1745166641006,-500.0,0.00059175,120]
[358457899,1745166641018,-500.0,0.00059175,120]
[358457900,1745166641029,-500.0,0.00059175,120]
[358457901,1745166641039,-500.0,0.00059175,120]
[358457902,1745166641050,-500.0,0.00059175,120]
[358457903,1745166641061,-502.29,0.00059175,120]
[358457904,1745166641074,-358.62275774,0.00059175,120]
[358457905,1745166641085,-500.0,0.00059175,120]
[358457906,1745166641094,-500.0,0.00059175,120]
[358457907,1745166641104,-152.27,0.000592,60]
[358457908,1745166641114,-152.27,0.000592,60]
[358457909,1745166641124,-152.27,0.000592,60]
[358457910,1745166641134,-152.27,0.000592,60]
[358457911,1745166641145,-152.27,0.000592,60]
[358457912,1745166641156,-152.27,0.000592,60]
[358457913,1745166641167,-152.27,0.000592,60]
[358457914,1745166641178,-152.27,0.000592,60]
[358457915,1745166641189,-582.99112973,0.00059275,15]
[358457916,1745166641199,-200.0,0.00059515,120]
[358457917,1745166641208,-500.0,0.00059546,120]
[358457918,1745166641218,-437.05,0.00059546,120]
[358457919,1745166641228,-500.0,0.00059546,2]
[358457920,1745166641237,-500.0,0.00059546,2]
[358457921,1745166641247,-500.0,0.00059546,120]
[358457922,1745166641257,-500.0,0.00059546,2]
[358457923,1745166641267,-420.67531637,0.00059547,120]
[358457924,1745166641278,-500.0,0.00059547,120]
[358457925,1745166641287,-208.44214014,0.00059547,120]
[358457926,1745166641297,-460.44257274,0.00059547,120]
[358457927,1745166641307,-500.0,0.00059547,120]
[358457928,1745166641318,-6296.39,0.00059547,2]
[358457929,1745166641328,-500.0,0.00059547,120]
[358457930,1745166641340,-500.0,0.00059547,120]
[358457931,1745166641350,-500.0,0.00059547,120]
[358457932,1745166641360,-500.0,0.00059547,120]
[358457933,1745166641370,-500.0,0.00059547,120]
[358457934,1745166641380,-500.0,0.00059547,118]
[358457935,1745166641391,-500.0,0.00059547,120]
[358457936,1745166641400,-500.0,0.00059547,120]
[358457937,1745166641411,-500.0,0.00059547,120]
[358457938,1745166641422,-875.14612626,0.00059623,31]
[358457939,1745166641432,-500.0,0.00059713,120]
[358457940,1745166641442,-500.0,0.00059713,120]
[358457941,1745166641452,-500.0,0.00059713,120]
[358457942,1745166641462,-500.0,0.00059713,120]
[358457943,1745166641472,-500.0,0.00059713,120]
[358457944,1745166641482,-500.0,0.00059713,120]
[358457945,1745166641492,-200.88581543,0.00059713,120]
[358457946,1745166641502,-500.0,0.00059713,120]
[358457947,1745166641512,-500.0,0.00059713,120]
[358457948,1745166641522,-500.0,0.00059713,8]
[358457949,1745166641532,-1000.0,0.00059713,120]
[358457950,1745166641542,-500.0,0.00059713,120]
[358457951,1745166641552,-500.0,0.00059713,120]
[358457952,1745166641563,-500.0,0.00059713,120]
[358457953,1745166641573,-500.0,0.00059713,120]
[358457954,1745166641583,-500.0,0.00059713,120]
[358457955,1745166641593,-500.0,0.00059713,120]
[358457956,1745166641603,-540.37,0.00059713,120]
[358457957,1745166641612,-500.0,0.00059713,120]
[358457958,1745166641623,-500.0,0.00059713,120]
[358457959,1745166641633,-500.0,0.00059713,120]
[358457960,1745166641643,-500.0,0.00059713,120]
[358457961,1745166641654,-500.0,0.00059713,120]
[358457962,1745166641667,-790.52,0.00059713,120]
[358457963,1745166641676,-607.88,0.00059713,120]
[358457964,1745166641686,-500.0,0.00059713,120]
[358457965,1745166641698,-190.73390304,0.00059713,120]
[358457966,1745166641708,-500.0,0.00059713,120]
[358457967,1745166641718,-500.0,0.00059723,120]
[358457968,1745166641728,-500.0,0.00059723,120]
[358457969,1745166641738,-500.0,0.00059723,120]
[358457970,1745166641748,-500.0,0.00059723,30]
[358457971,1745166641758,-500.0,0.00059723,120]
[358457972,1745166641768,-567.66844066,0.00059723,120]
[358457973,1745166641778,-500.0,0.00059723,120]
[358457974,1745166641788,-500.0,0.00059723,120]
[358457975,1745166641798,-660.49,0.00059723,120]
[358457976,1745166641809,-500.0,0.00059723,120]
[358457977,1745166641819,-500.0,0.00059723,120]
[358457978,1745166641833,-500.0,0.00059723,120]
[358457979,1745166641843,-500.0,0.00059723,120]
[358457980,1745166641854,-165.81466619,0.00059723,120]
[358457981,1745166641864,-500.0,0.00059723,120]
[358457982,1745166641876,-500.0,0.00059723,120]
[358457983,1745166641886,-500.0,0.00059723,120]
[358457984,1745166641896,-500.0,0.00059723,120]
[358457985,1745166641908,-500.0,0.00059723,120]
[358457986,1745166641919,-500.0,0.00059723,120]
[358457987,1745166641928,-500.0,0.00059723,120]
[358457988,1745166641939,-500.0,0.00059723,120]
[358457989,1745166641949,-500.0,0.00059723,120]
[358457990,1745166641959,-500.0,0.00059723,120]
[358457991,1745166641970,-500.0,0.00059723,120]
[358457992,1745166641979,-500.0,0.00059723,120]
[358457993,1745166641989,-396.59910524,0.00059723,120]
[358457994,1745166641999,-557.49,0.00059723,120]
[358457995,1745166642010,-970.95,0.00059723,12]
[358457996,1745166642020,-500.0,0.00059723,120]
[358457997,1745166642030,-500.0,0.00059723,120]
[358457998,1745166642040,-500.0,0.00059723,120]
[358457999,1745166642050,-500.0,0.00059723,120]
[358458000,1745166642060,-500.0,0.00059723,120]
[358458001,1745166642070,-500.0,0.00059723,120]
[358458002,1745166642081,-500.0,0.00059723,120]
[358458003,1745166642091,-500.0,0.00059723,120]
[358458004,1745166642101,-500.0,0.00059723,120]
[358458005,1745166642111,-500.0,0.00059723,120]
[358458006,1745166642121,-352.68997787,0.00059723,120]
[358458007,1745166642132,-500.0,0.00059723,120]
[358458008,1745166642142,-361.4103254,0.00059723,120]
[358458009,1745166642152,-500.0,0.00059723,120]
[358458010,1745166642162,-500.0,0.00059723,120]
[358458011,1745166642172,-500.0,0.00059723,120]
[358458012,1745166642182,-500.0,0.00059723,120]
[358458013,1745166642191,-500.0,0.00059723,120]
[358458014,1745166642200,-500.0,0.00059723,120]
[358458015,1745166642209,-500.0,0.00059723,120]
[358458016,1745166642219,-500.0,0.00059723,120]
[358458017,1745166642228,-500.0,0.00059723,120]
[358458018,1745166642238,-500.0,0.00059723,120]
[358458019,1745166642247,-502.29,0.00059723,120]
[358458020,1745166642456,-500.0,0.00059723,120]
[358458021,1745166642466,-500.0,0.00059723,120]
[358458022,1745166642475,-166.67,0.00059793,2]
[358458023,1745166642484,-150.0,0.00059869,120]
[358458024,1745166642494,-582.99112973,0.000599,15]
[358458025,1745166642503,-284.28,0.00059916,2]
[358458026,1745166642513,-5450.0,0.0006,120]
[358458027,1745166642523,-500.0,0.0006,120]
[358458028,1745166642532,-656.06,0.0006,120]
[358458029,1745166642542,-500.0,0.00060094,120]
[358458030,1745166642552,-500.0,0.00060094,2]
[358458031,1745166642561,-500.0,0.00060094,2]
[358458032,1745166642571,-500.0,0.00060094,120]
[358458033,1745166642581,-500.0,0.00060094,2]
[358458034,1745166642591,-500.0,0.00060095,120]
[358458035,1745166642601,-434.06395847,0.00060095,120]
[358458036,1745166642610,-6296.39,0.00060095,2]
[358458037,1745166642620,-500.0,0.00060095,120]
[358458038,1745166642629,-500.0,0.00060095,120]
[358458039,1745166642639,-500.0,0.00060095,120]
[358458040,1745166642648,-500.0,0.00060095,120]
[358458043,1745166642658,-465.11376393,0.00060095,120]
[358458044,1745166642667,-582.48968904,0.00060095,118]
[358458046,1745166642677,-500.0,0.00060095,120]
[358458047,1745166642687,-500.0,0.00060095,120]
[358458048,1745166642696,-500.0,0.00060095,120]
[358458050,1745166642705,-500.0,0.0006026,120]
[358458051,1745166642715,-533.99498436,0.0006026,120]
[358458052,1745166642724,-500.0,0.0006026,120]
[358458053,1745166642733,-417.91503815,0.0006026,120]
[358458054,1745166642742,-515.16532087,0.0006026,120]
[358458055,1745166642751,-500.0,0.0006026,120]
[358458056,1745166642760,-500.0,0.0006026,120]
[358458057,1745166642770,-500.0,0.0006026,120]
[358458058,1745166642779,-500.0,0.0006026,120]
[358458059,1745166642789,-500.0,0.0006026,120]
[358458060,1745166642798,-500.0,0.0006026,120]
[358458061,1745166642807,-603.47396589,0.0006026,120]
[358458062,1745166642816,-500.0,0.0006026,120]
[358458063,1745166642829,-500.0,0.0006026,120]
[358458064,1745166642839,-186.68009813,0.0006026,120]
[358458065,1745166642848,-500.0,0.0006026,120]
[358458066,1745166642857,-500.0,0.0006026,120]
[358458067,1745166642867,-528.85673418,0.0006026,120]
[358458068,1745166642877,-500.0,0.0006026,120]
[358458069,1745166642886,-500.0,0.0006026,120]
[358458070,1745166642895,-282.83059269,0.0006026,120]
[358458071,1745166642906,-671.76,0.0006026,2]
[358458072,1745166642915,-500.0,0.0006026,120]
[358458073,1745166642924,-500.0,0.0006026,120]
[358458074,1745166642933,-630.68215134,0.0006026,60]
[358458075,1745166642942,-500.0,0.0006026,120]
[358458076,1745166642952,-500.0,0.0006026,120]
[358458077,1745166642960,-500.0,0.0006026,120]
[358458078,1745166642969,-500.0,0.0006026,120]
[358458079,1745166642979,-500.0,0.0006026,120]
[358458080,1745166642988,-326.70996739,0.0006026,120]
[358458081,1745166642997,-999.0,0.0006026,120]
[358458082,1745166643006,-500.0,0.0006026,120]
[358458083,1745166643015,-500.0,0.0006026,120]
[358458084,1745166643024,-500.0,0.0006026,120]
[358458085,1745166643033,-302.99030591,0.0006026,120]
[358458086,1745166643042,-500.0,0.0006026,120]
[358458087,1745166643051,-500.0,0.0006026,120]
[358458088,1745166643060,-500.0,0.0006026,120]
[358458089,1745166643069,-500.0,0.0006026,120]
[358458090,1745166643078,-500.0,0.0006026,120]
[358458091,1745166643087,-500.0,0.0006026,120]
[358458092,1745166643096,-500.0,0.0006026,120]
[358458093,1745166643105,-500.0,0.0006026,120]
[358458094,1745166643114,-500.0,0.0006026,120]
[358458095,1745166643125,-500.0,0.0006026,120]
[358458096,1745166643134,-500.0,0.0006026,120]
[358458097,1745166643144,-500.0,0.0006026,120]
[358458098,1745166643153,-500.0,0.0006026,120]
[358458099,1745166643162,-500.0,0.0006026,120]
[358458100,1745166643172,-500.0,0.0006026,120]
[358458102,1745166643181,-500.0,0.0006026,120]
[358458104,1745166643190,-519.02126104,0.0006026,120]
[358458105,1745166643199,-500.0,0.0006026,120]
[358458106,1745166643208,-555.69392514,0.0006026,120]
[358458107,1745166643217,-500.0,0.0006026,120]
[358458108,1745166643226,-500.0,0.0006026,120]
[358458109,1745166643236,-535.21661944,0.0006026,120]
[358458110,1745166643245,-500.0,0.0006026,120]
[358458111,1745166643255,-500.0,0.0006026,120]
[358458112,1745166643264,-500.0,0.0006026,120]
[358458113,1745166643273,-552.05539893,0.0006026,120]
[358458114,1745166643282,-500.0,0.0006026,120]
[358458115,1745166643292,-500.0,0.0006026,120]
[358458116,1745166643301,-500.0,0.0006026,120]
[358458117,1745166643310,-500.0,0.0006026,120]
[358458119,1745166643319,-544.75347657,0.0006026,120]
[358458120,1745166643328,-541.36073956,0.0006026,120]
[358458122,1745166643338,-500.0,0.0006026,120]
[358458124,1745166643347,-500.0,0.0006026,120]
[358458126,1745166643356,-557.47675522,0.0006026,120]
[358458128,1745166643365,-586.00210286,0.0006026,120]
[358458130,1745166643375,-500.0,0.0006026,120]
[358458132,1745166643384,-500.0,0.0006026,120]
[358458133,1745166643394,-500.0,0.0006026,120]
[358458134,1745166643403,-500.0,0.0006026,30]
[358458135,1745166643412,-500.0,0.0006026,120]
[358458136,1745166643423,-500.0,0.0006026,120]
[358458137,1745166643433,-500.0,0.0006026,120]
[358458138,1745166643443,-500.0,0.0006026,120]
[358458139,1745166643453,-500.0,0.0006026,120]
[358458140,1745166643462,-500.0,0.00060261,120]